Cogmind - Beta 15 @@@ ROGUE MODE // 2025.06.17 @ 03:46:12 Player: CL-1C0 Result: Destroyed by G-34 Mercenary with Small Laser Performance ------------- Evolutions (0) 0 Regions Visited (1) 200 Robots Destroyed (8) 40 Value Destroyed (154) 154 Prototype IDs (0) 0 Alien Tech Used (0) 0 Bonus (0) 0 TOTAL SCORE: 394 Bonus ------- None Cogmind --------- Core Integrity 0/250 Matter 240/300 Energy 100/100 System Corruption 0% Temperature Cool (12) Movement Core (50) Location -10/Materials Parts ------- > --- POWER (1) -------- (None) > --- PROPULSION (2) --- (None) > --- UTILITY (2) ------ (None) > --- WEAPON (2) ------- Mini Grenade Launcher > --- INVENTORY (5) ---- Mini Grenade Launcher Peak State ------------ > --- POWER ------------ (None) > --- PROPULSION ------- Light Treads Light Treads > --- UTILITY ---------- (None) > --- WEAPON ----------- Mini Grenade Launcher > --- INVENTORY -------- Mini Grenade Launcher [Rating: 4] Favorites ----------- Power None Propulsion Light Treads Treads Light Treads Utility None Weapon Mini Grenade Launcher Launcher Mini Grenade Launcher Build | -11 -10 ------- Run | Yrd Mat Slots Evolved . | . . Power . | . . Propulsion . | . . Utility . | . . Weapon . | . . Parts Attached 3 | 2 1 Power . | . . Engine . | . . Core . | . . Reactor . | . . Propulsion 2 | 2 . Treads 2 | 2 . Leg . | . . Wheel . | . . Hover . | . . Flight . | . . Utility . | . . Device . | . . Storage . | . . Processor . | . . Hackware . | . . Protection . | . . Artifact . | . . Weapon 1 | . 1 Energy Gun . | . . Energy Cannon . | . . Ballistic Gun . | . . Ballistic Cannon . | . . Launcher 1 | . 1 Special Weapon . | . . Impact Weapon . | . . Slashing Weapon . | . . Piercing Weapon . | . . Special Melee Weapon . | . . Unidentified Prototypes . | . . Parts Lost 2 | . 2 Power . | . . Propulsion 2 | . 2 Utility . | . . Weapon . | . . Highest Loss Streak 2 | . 2 To Critical Strikes 1 | . 1 Average Backups . | 4 . Power . | . . Propulsion . | 3 . Utility . | . . Weapon . | 1 . Tool/Special . | . . Unused Backups . | . . Power . | . . Propulsion . | . . Utility . | . . Weapon . | . . Tool/Special . | . . Average Slot Usage (%) 26 | . 26 Treads 24 | . 24 Launcher 1 | . 1 Peak Build Rating 4 | 2 4 Average Rating 2 | 1 2 On Entrance 4 | 6 2 Naked Turns . | . . Heaviest Build . | . . Greatest Support 3 | 3 3 Greatest Overweight (x) . | . . Average Overweight (x) . | . . Largest Inventory Capacity 5 | 5 5 Average Capacity 5 | 5 5 Most Carried 4 | 4 2 Average Carried . | 2 . Final Capacity 5 | 5 5 Final Carried 1 | . 1 Class Distribution -------------------- 100% | Mutant Dominant Class ---------------- Mutant | -10/Materials Resources | -11 -10 ----------- Run | Yrd Mat Matter Collected 200 | 200 . Remotely . | . . Salvage Created 112 | . 112 Parts 8 | . 8 Haulers Intercepted 1 | . 1 Recyclers Shooed . | . . Parts Field Recycled . | . . Retrieved Matter . | . . Parts Self-Destructed . | . . Prevented . | . . Kills | -11 -10 ------- Run | Yrd Mat Combat Hostiles Destroyed 7 | . 7 AOE 7 | . 7 Classes Destroyed 3 | . 3 Hauler 1 | . 1 Swarmer 4 | . 4 Grunt 3 | . 3 Best Kill Streak 8 | . 8 Combat Bots Only 7 | . 7 Max Kills in Single Turn 3 | . 3 Gunslinging . | . . Exploded 3 | . 3 Melee . | . . Uniques/NPCs Destroyed . | . . Combat | -11 -10 -------- Run | Yrd Mat Hostile Shots Fired 72 | . 72 Missed 20 | . 20 Hits 52 | . 52 Projectile 52 | . 52 Critical Strikes 1 | . 1 Damage Taken 549 | . 549 Core 252 | . 252 Absorbed by Shields . | . . Core Remaining (%) 100 | 100 . Volleys Fired 4 | . 4 Largest 1 | . 1 Hottest 30 | . 30 Shots Fired 4 | . 4 Gun . | . . Cannon . | . . Launcher 4 | . 4 Special . | . . Kinetic . | . . Thermal . | . . Explosive 4 | . 4 Electromagnetic . | . . Robot Hit Streak 4 | . 4 Robot Miss Streak . | . . Penetration Max . | . . Secondary Targets . | . . Shots Hit Robots 4 | . 4 Core Hits 12 | . 12 Critical Kills . | . . Critical Parts Destroyed . | . . Critical Strikes . | . . Melee Attacks . | . . Impact . | . . Slashing . | . . Piercing . | . . Sneak Attacks . | . . Combat Hostiles . | . . Follow-up Attacks . | . . Damage Inflicted 759 | . 759 Guns . | . . Cannons . | . . Explosions 759 | . 759 Melee . | . . Ramming . | . . Kinetic . | . . Thermal . | . . Explosive 759 | . 759 Electromagnetic . | . . Impact . | . . Slashing . | . . Piercing . | . . Highest Corruption . | . . Average Corruption . | . . Corruption Purged . | . . Corruption Blocked . | . . Overload Shots . | . . Overflow Damage 6 | . 6 Projectiles . | . . Explosions 6 | . 6 Melee . | . . Knockbacks . | . . Impact . | . . Kinetic . | . . Secondary . | . . Self-Inflicted Damage 42 | . 42 Shots 1 | . 1 Rammed . | . . Targets Rammed . | . . Kicked . | . . Crushed . | . . Highest Temperature 16 | . 16 Average Temperature 7 | . 7 Received Heat Transfer 141 | . 141 Siege Activations . | . . Martial Activations . | . . Shielding Activations . | . . Robots Disrupted . | . . Combat Hostiles . | . . Robots Corrupted . | . . Combat Hostiles . | . . Parts Fried . | . . Impact Corruptions . | . . Robots Melted . | . . Combat Hostiles . | . . Parts Melted . | . . Heat Transferred . | . . Parts Sabotaged . | . . Parts Stolen . | . . Parts Stripped . | . . Power Chain Reactions . | . . Alert | -11 -10 ------- Run | Yrd Mat Maximum Alert Level . | . . Low Security (%) 100 | 100 100 Level 1 . | . . Level 2 . | . . Level 3 . | . . Level 4 . | . . Level 5 . | . . High Security . | . . Max Security . | . . Peak Influence 137 | . 137 Initial . | . . Average 13 | . 14 Influence Increases 245 | . 245 Destroy 0b10 Robot/C 140 | . 140 Destroy 0b10 Robot/NC 5 | . 5 Destroy Leader 32 | . 32 Successful Hack 14 | . 14 Disable Machine 15 | . 15 Destroy Structure 9 | . 9 Lose Combat Pursuer 30 | . 30 Influence Decreases 39 | . 39 Time Decay 24 | . 24 Lost Part 15 | . 15 Squads Dispatched 2 | . 2 Investigation 1 | . 1 Extermination . | . . Reinforcement 1 | . 1 Assault . | . . Garrison . | . . Intercept . | . . Searches Triggered . | . . Construction Impeded . | . . Haulers Reinforced . | . . Active Scanning Responses . | . . Cargo Convoy Interrupts . | . . Stealth | -11 -10 --------- Run | Yrd Mat Distress Signals 1 | . 1 Communications Jammed . | . . Distress Signals . | . . Times Spotted 16 | . 16 Peak Tracking Total 14 | . 14 Tactical Retreats 1 | . 1 Traps | -11 -10 ------- Run | Yrd Mat Traps Triggered . | . . Indirectly . | . . Trap Hack Attempts . | . . Triggered . | . . Disarmed . | . . Reprogrammed . | . . Reused . | . . Traps Extracted . | . . Installed . | . . Triggered . | . . Machines | -11 -10 ---------- Run | Yrd Mat Machines Disabled 1 | . 1 Max in Single Turn 1 | . 1 Machines Repaired . | . . Machines Dismantled . | . . Machines Sabotaged . | . . Overloaded Fab Kills . | . . Hacking | -11 -10 --------- Run | Yrd Mat Machines Accessed 2 | . 2 Terminals 2 | . 2 Fabricators . | . . Repair Stations . | . . Recycling Units . | . . Scanalyzers . | . . Garrison Access . | . . Total Hacks 6 | . 6 Successful 3 | . 3 Failed 3 | . 3 Catastrophic 1 | . 1 Database Lockouts . | . . Manual 5 | . 5 Terminals 6 | . 6 Fabricators . | . . Repair Stations . | . . Recycling Units . | . . Scanalyzers . | . . Garrison Access . | . . Terminal Hacks 3 | . 3 Level Access Points 1 | . 1 Emergency Access Points 1 | . 1 Zone Layout 1 | . 1 Fabricator Hacks . | . . Repair Station Hacks . | . . Recycling Unit Hacks . | . . Scanalyzer . | . . Garrison Access Hacks . | . . Unauthorized Hacks . | . . Terminals . | . . Fabricators . | . . Repair Stations . | . . Recycling Units . | . . Scanalyzers . | . . Garrison Access . | . . Data Cores Recovered . | . . Used . | . . Hacking Detections 1 | . 1 Full Trace Events 1 | . 1 Feedback Events . | . . Feedback Blocked . | . . Robot Schematics Acquired . | . . Robots Built . | . . Authchips . | . . Time . | . . Total Robot Build Rating . | . . Part Schematics Acquired . | . . Parts Built . | . . Authchips . | . . Time . | . . Total Part Build Rating . | . . Parts Repaired . | . . Time . | . . Parts Recycled . | . . Recycled Matter . | . . Retrieved Matter . | . . Retrieved Components . | . . Parts Scanalyzed . | . . Part Schematics Acquired . | . . Parts Damaged . | . . Bothacking | -11 -10 ------------ Run | Yrd Mat Used RIF Installer . | . . Robots Hacked . | . . Non-combat . | . . Combat . | . . Robot Hacks Applied . | . . Relay Couplers Released . | . . Fabnet Peak Effective % . | . . Robots Rewired . | . . Allies Hacked . | . . Hacks Repelled . | . . Allies | -11 -10 -------- Run | Yrd Mat Total Allies . | . . Largest Group . | . . Highest-Rated Group . | . . Highest-Rated Ally . | . . Total Orders . | . . Ally Attacks . | . . Total Damage . | . . Kills . | . . Allies Corrupted . | . . Allies Melted . | . . Intel | -11 -10 ------- Run | Yrd Mat Active Infowar (turns) . | . . Robot Analysis Total . | . . Derelict Logs Recovered . | . . Drone Launches . | . . Drone Recoveries . | . . Exploration | -11 -10 ------------- Run | Yrd Mat Turns Passed 70 | 4 66 Spaces Moved 114 | 1 113 Core 114 | 1 113 Treads . | . . Legs . | . . Wheels . | . . Hover . | . . Flight . | . . Fastest Speed 50 | 50 50 Average Speed 50 | 50 50 Slowest Speed 50 | 50 50 Overloaded Moves . | . . Propulsion Burnouts . | . . Robots Hopped . | . . Potential Cave-ins . | . . Cave-ins Triggered . | . . Exploration Rate (%) 17 | 2 33 Regions Visited 1 Branch Regions . Pre-discovered Areas . | . . Known Exits Taken . | . . Unknown Exits Taken 1 | 1 . Scrap Searched . | . . Spaces Dug . | . . Terrain Destroyed 12 | . 12 Melee . | . . Projectile . | . . AOE 12 | . 12 Terrain Rammed . | . . Walls Destroyed . | . . Machines Disabled . | . . Actions | -11 -10 --------- Run | Yrd Mat Total 125 | 5 120 Wait . | . . Move 113 | . 113 Hop . | . . Pick Up 2 | . 2 Fast Attach . | . . Attach 3 | 2 1 Detach . | . . Swap . | . . Drop 3 | 3 . Fire 4 | . 4 Melee . | . . Ram . | . . Kick . | . . Crush . | . . Escape Stasis . | . . Rewire . | . . Trap . | . . Miscellaneous . | . . Route ------- -11/Scrapyard -10/Materials (discovered 3 exits: *Mat x3) History --------- Turn | Location | Event 1 | -11/Scrapyard | Released all parts (6) 5 | -11/Scrapyard | Discovered new exit (range 0) 5 | -11/Scrapyard | Entered Materials 16 | -10/Materials | Identified exit to Materials 69 | -10/Materials | Core integrity fell below 50% 71 | -10/Materials | Destroyed by G-34 Mercenary with Small Laser Last Messages --------------- 00052_ ALERT: Hostiles spotted, dispatching reinforcements to Terminal M006. 00056_ K-01 Serf collects debris. 00059_ Acquired Mni. Grenade Launcher. 00060_ S-10 Pest destroyed. 00065_ Critical hit (Destroy). 00065_ Lgt. Treads destroyed. 00065_ Integration Channel disabled. 00065_ S-10 Pest destroyed. 00065_ Lgt. Treads destroyed. 00067_ Destroyed Lgt. Assault Rifle. 00067_ S-10 Pest destroyed. 00069_ G-34 Mercenary destroyed. 00069_ A-02 Transporter destroyed. 00070_ HV Slug penetrates Integration Channel. 00070_ HV Slug penetrates S-10 Pest. 00070_ S-10 Pest suffers critical hit (Destroy). 00070_ S-10 Pest destroyed. 00070_ HV Slug penetrates Fusion Modulator. 00071_ G-34 Mercenary destroyed. Map ----- +----------------------------------------------------+ | | | | | | | | | | | | | | | | | | | | | | | ?????????????????????????????????????????????????? | | ?????????????????????????????????????????????????? | | ?????????????????????????????????????????????????? | | ?????????????????????????????????????????????????? | | ?????????????????????????????????????????????????? | | ?????????????????????????????????????????????????? | | ???????????????????????#####?????????????????????? | | ???????????????????????# #?????????????????????? | | ???????????????????????# < #?????????????????????? | | ???????????????????????# #????????+????????????? | | ???????????????????????# ###+### ????????????? | | ???????????????????????# ?????????????? | | ?????????????????????### ??????????????? | | ?????????????????????# [= """ ""??????????????? | | ?????????????????????# [@ """ """?????????????? | | ???????????????????### %* """ """ ????????????? | | ? ???????????????#]] ! ]] #?????????? | | ? #??????????????#]] ]%] #?????????? | | # #??????????????# ]]!% ?????????? | | # #??????????????#]] * ?????????? | | # #??????????????#== g "" % ??????????? | | + +??????????????#== """" ??????????? | | # #??????????????### """ ?????????? | | # ^#????????????????# gr ?????????? | | # ################## ?????????? | | # g ?????????? | | # ?????????? | | # """"" ?????????? | | # """"""""" ############+###########??????????? | | """ """ #?????????????????????????????????? | | #?????????????????????????????????? | | #?????????????????????????????????? | | #?????????????????????????????????? | | #?????????????????????????????????? | | ##########+#####???????????????????????????????? | | ####### #???????????????????????????????? | | # # """ #???????????????????????????????? | | # # """ #???????????????????????????????? | | # # """ #???????????????????????????????? | +----------------------------------------------------+ Best States ------------- Heat Dissipation 25 Energy Generation 5 Energy Capacity 100 Matter Stores 280 Matter Capacity 300 Sight Range 16 Terrain Scan Density 10 Evasion (%) 50 Item Schematics ----------------- None Robot Schematics ------------------ None Fabricated ------------ Nothing Repaired ---------- Nothing Alien Tech Used ----------------- None Achievements -------------- None Challenges ------------ None Game ------ Seed TractorHypercooledLance Manual? 0 Play Time 00:02:58 Cumulative 541.4 hours Start 2025.06.17 @ 03:44:37 End 2025.06.17 @ 03:46:12 Sessions 1 Manual Loads 0 Difficulty Rogue Special Mode None Game No. 650 Rogue 650 Adventurer 0 Explorer 0 Win Type - Total 19 Types 13/0/5/1/0/0/0/0/0/0 Lore% 84 Gallery% 83 Achievement% 82 Wizard Run 0 Options --------- Layout 0 ASCII 0 Keyboard 0 Movement Numpad Keybinds 0 Fullscreen 1 Font 18/SmallcapsGlow Map View 76x50 Zoom Use 0% Tactical HUD 1 Map Filters NONE Filters NONE Steam 1 RUN: 78956af6-f1b0-41d9-b720-5378b9da7631